[Event "*** Titled Tuesday Blitz"]
[Site "Chess.com"]
[Date "2019.08.06"]
[Round "2"]
[White "NoGalloNoParty"]
[Black "ClockworkKubrick"]
[Result "1-0"]
[WhiteElo "2321"]
[BlackElo "2191"]
[TimeControl "180+2"]
[EndTime "13:22:39 PDT"]
[Termination "NoGalloNoParty won by resignation"]

1. d4 {[%clk 0:03:01.9]} 1... d6 {[%clk 0:02:40.8]} 2. Nf3 {[%clk 0:03:02.1]}
2... Nf6 {[%clk 0:02:40.3]} 3. c4 {[%clk 0:03:02.5]} 3... g6 {[%clk 0:02:42]} 4.
Nc3 {[%clk 0:03:02.9]} 4... Bg7 {[%clk 0:02:43.7]} 5. g3 {[%clk 0:03:03.9]} 5...
O-O {[%clk 0:02:45.3]} 6. Bg2 {[%clk 0:03:04.7]} 6... Nbd7 {[%clk 0:02:47.2]} 7.
O-O {[%clk 0:03:05.1]} 7... c6 {[%clk 0:02:48.4]} 8. e4 {[%clk 0:03:03.8]} 8...
e5 {[%clk 0:02:49.4]} 9. h3 {[%clk 0:03:04.3]} 9... Re8 {[%clk 0:02:47.1]} 10.
d5 {[%clk 0:03:01.2]} 10... cxd5 {[%clk 0:02:47.1]} 11. cxd5 {[%clk 0:03:01.5]}
11... a6 {[%clk 0:02:48.5]} 12. Be3 {[%clk 0:02:58.1]} 12... b5 {[%clk
0:02:49.2]} 13. b4 {[%clk 0:02:50.7]} 13... Nb6 {[%clk 0:02:47.9]} 14. Bxb6
{[%clk 0:02:50.3]} 14... Qxb6 {[%clk 0:02:48.3]} 15. Qe2 {[%clk 0:02:46.3]}
15... Bd7 {[%clk 0:02:48.1]} 16. Rfc1 {[%clk 0:02:45.1]} 16... Rac8 {[%clk
0:02:48.7]} 17. Nd2 {[%clk 0:02:44.9]} 17... Rc7 {[%clk 0:02:47.3]} 18. Nb3
{[%clk 0:02:26.7]} 18... Rec8 {[%clk 0:02:42.9]} 19. Nd1 {[%clk 0:02:21.7]}
19... Nh5 {[%clk 0:02:42.5]} 20. Qd2 {[%clk 0:02:02.9]} 20... Nxg3 {[%clk
0:02:38]} 21. Ne3 {[%clk 0:02:00.4]} 21... Nh5 {[%clk 0:02:35.5]} 22. Rxc7
{[%clk 0:01:55.9]} 22... Rxc7 {[%clk 0:02:36]} 23. Rc1 {[%clk 0:01:56.1]} 23...
Nf4 {[%clk 0:02:36.9]} 24. Kh2 {[%clk 0:01:46.1]} 24... Bh6 {[%clk 0:02:20.6]}
25. Rxc7 {[%clk 0:01:35]} 25... Qxc7 {[%clk 0:02:20.3]} 26. Qc1 {[%clk
0:01:35.8]} 26... Qxc1 {[%clk 0:02:20.1]} 27. Nxc1 {[%clk 0:01:36]} 27... Nxg2
{[%clk 0:02:14.8]} 28. Kxg2 {[%clk 0:01:36.3]} 28... f5 {[%clk 0:02:13.2]} 29.
h4 {[%clk 0:01:23.6]} 29... Kg7 {[%clk 0:02:09.5]} 30. Ne2 {[%clk 0:01:16.4]}
30... fxe4 {[%clk 0:02:07.8]} 31. Ng3 {[%clk 0:01:14.2]} 31... Bxe3 {[%clk
0:02:04.9]} 32. fxe3 {[%clk 0:01:14.8]} 32... Bf5 {[%clk 0:02:05.8]} 33. Ne2
{[%clk 0:01:03.4]} 33... h6 {[%clk 0:01:58.2]} 34. Nc3 {[%clk 0:01:02.3]} 34...
Kf6 {[%clk 0:01:56.4]} 35. Kg3 {[%clk 0:01:02.4]} 35... g5 {[%clk 0:01:45]} 36.
a4 {[%clk 0:01:01.3]} 36... bxa4 {[%clk 0:01:44.8]} 37. Nxa4 {[%clk 0:01:01.6]}
37... Bc8 {[%clk 0:01:35.4]} 38. Nc3 {[%clk 0:01:00.3]} 38... Kf5 {[%clk
0:01:35.4]} 39. hxg5 {[%clk 0:00:58]} 39... hxg5 {[%clk 0:01:36.1]} 40. b5
{[%clk 0:00:58.5]} 40... a5 {[%clk 0:01:35.8]} 41. b6 {[%clk 0:00:58.3]} 41...
Bb7 {[%clk 0:01:37]} 42. Nb5 {[%clk 0:00:59.3]} 42... Bxd5 {[%clk 0:01:34.5]}
43. Nxd6+ {[%clk 0:00:59.3]} 43... Ke6 {[%clk 0:01:35.5]} 44. b7 {[%clk
0:00:58.7]} 44... Bxb7 {[%clk 0:01:34.9]} 45. Nxb7 {[%clk 0:01:00.6]} 45... a4
{[%clk 0:01:36.4]} 46. Nc5+ {[%clk 0:01:01.7]} 46... Kd5 {[%clk 0:01:36.8]} 47.
Nxa4 {[%clk 0:01:03.6]} 47... Kc4 {[%clk 0:01:38.5]} 48. Nb6+ {[%clk 0:00:43.6]}
48... Kd3 {[%clk 0:01:24.6]} 49. Nd5 {[%clk 0:00:40.7]} 49... Kc4 {[%clk
0:01:25]} 50. Nf6 {[%clk 0:00:40]} 50... Kd3 {[%clk 0:01:25.8]} 51. Kf2 {[%clk
0:00:37.4]} 51... g4 {[%clk 0:01:07]} 52. Nxg4 {[%clk 0:00:38]} 52... Kd2 {[%clk
0:01:08.1]} 53. Nxe5 {[%clk 0:00:38.7]} 1-0

[Event "*** Titled Tuesday Blitz"]
[Site "Chess.com"]
[Date "2019.08.06"]
[Round "2"]
[White "Saitama_Hero"]
[Black "LuisFSiles"]
[Result "1-0"]
[WhiteElo "2299"]
[BlackElo "2189"]
[TimeControl "180+2"]
[EndTime "13:22:41 PDT"]
[Termination "Saitama_Hero won on time"]

1. d4 {[%clk 0:03:01.9]} 1... Nf6 {[%clk 0:02:55.7]} 2. c4 {[%clk 0:03:03.4]}
2... g6 {[%clk 0:02:56]} 3. Nc3 {[%clk 0:03:04.8]} 3... Bg7 {[%clk 0:02:55.7]}
4. e4 {[%clk 0:03:04.8]} 4... d6 {[%clk 0:02:56.9]} 5. h3 {[%clk 0:03:04.2]}
5... O-O {[%clk 0:02:57.3]} 6. g4 {[%clk 0:03:05.3]} 6... c5 {[%clk 0:02:50.1]}
7. d5 {[%clk 0:03:06.4]} 7... e6 {[%clk 0:02:35.1]} 8. Bg2 {[%clk 0:03:07.6]}
8... exd5 {[%clk 0:02:35.4]} 9. cxd5 {[%clk 0:03:09.5]} 9... Re8 {[%clk
0:02:34.1]} 10. Nge2 {[%clk 0:03:10.5]} 10... b5 {[%clk 0:02:20.2]} 11. Ng3
{[%clk 0:03:11.6]} 11... b4 {[%clk 0:02:20.1]} 12. Nce2 {[%clk 0:03:13]} 12...
Ba6 {[%clk 0:02:06.5]} 13. O-O {[%clk 0:03:12.3]} 13... Nfd7 {[%clk 0:02:07.4]}
14. Re1 {[%clk 0:03:06.2]} 14... Ne5 {[%clk 0:01:59.1]} 15. Nf4 {[%clk
0:02:54.6]} 15... Nbd7 {[%clk 0:01:51.9]} 16. Rb1 {[%clk 0:02:45.2]} 16... Qa5
{[%clk 0:01:38.9]} 17. b3 {[%clk 0:02:06.8]} 17... Qxa2 {[%clk 0:01:30.7]} 18.
Bb2 {[%clk 0:02:08.2]} 18... Qa5 {[%clk 0:01:32]} 19. Ra1 {[%clk 0:01:52.7]}
19... Qb6 {[%clk 0:01:31.5]} 20. Ra2 {[%clk 0:01:53.4]} 20... Bb5 {[%clk
0:01:24.8]} 21. Nfh5 {[%clk 0:01:38.9]} 21... gxh5 {[%clk 0:01:06.6]} 22. Nxh5
{[%clk 0:01:40.8]} 22... Bh8 {[%clk 0:00:54.1]} 23. f4 {[%clk 0:01:40.1]} 23...
Nd3 {[%clk 0:00:54]} 24. Bxh8 {[%clk 0:01:39.4]} 24... Kxh8 {[%clk 0:00:54.6]}
25. Qa1+ {[%clk 0:01:38.9]} 25... f6 {[%clk 0:00:48.5]} 26. Re3 {[%clk 0:00:55]}
26... c4 {[%clk 0:00:41.6]} 27. Re2 {[%clk 0:00:55.1]} 27... c3 {[%clk 0:00:39]}
28. Kh1 {[%clk 0:00:52.6]} 28... a5 {[%clk 0:00:24.9]} 29. Bf3 {[%clk
0:00:41.1]} 29... a4 {[%clk 0:00:25.4]} 30. bxa4 {[%clk 0:00:41.2]} 30... Rxa4
{[%clk 0:00:27.3]} 31. Qg1 {[%clk 0:00:41.9]} 31... b3 {[%clk 0:00:21.2]} 32. g5
{[%clk 0:00:41.5]} 32... b2 {[%clk 0:00:20.9]} 33. g6 {[%clk 0:00:33.1]} 33...
Ra1 {[%clk 0:00:17.2]} 34. g7+ {[%clk 0:00:23.1]} 34... Kg8 {[%clk 0:00:16.2]}
35. Bg4 {[%clk 0:00:18.9]} 35... Rxg1+ {[%clk 0:00:14.9]} 36. Kxg1 {[%clk
0:00:20.8]} 36... b1=Q+ {[%clk 0:00:14.8]} 37. Kh2 {[%clk 0:00:22.7]} 1-0

[Event "*** Titled Tuesday Blitz"]
[Site "Chess.com"]
[Date "2019.08.06"]
[Round "2"]
[White "Komissarov_alex"]
[Black "NemtsevIgor"]
[Result "0-1"]
[WhiteElo "2195"]
[BlackElo "2319"]
[TimeControl "180+2"]
[EndTime "13:22:44 PDT"]
[Termination "NemtsevIgor won on time"]

1. d4 {[%clk 0:03:01.9]} 1... Nf6 {[%clk 0:02:58.1]} 2. Nf3 {[%clk 0:03:00.9]}
2... g6 {[%clk 0:02:56.9]} 3. Nc3 {[%clk 0:02:55.2]} 3... d5 {[%clk 0:02:56.2]}
4. Bf4 {[%clk 0:02:53.9]} 4... c6 {[%clk 0:02:54.5]} 5. e3 {[%clk 0:02:52.9]}
5... b5 {[%clk 0:02:54]} 6. Be2 {[%clk 0:02:43.6]} 6... Bg7 {[%clk 0:02:54.2]}
7. Ne5 {[%clk 0:02:41.9]} 7... O-O {[%clk 0:02:53]} 8. h4 {[%clk 0:02:39.3]}
8... b4 {[%clk 0:02:46.1]} 9. Na4 {[%clk 0:02:34.8]} 9... Nfd7 {[%clk
0:02:29.5]} 10. h5 {[%clk 0:02:14.7]} 10... Nxe5 {[%clk 0:02:27.4]} 11. Bxe5
{[%clk 0:02:13.7]} 11... Bxe5 {[%clk 0:02:25.9]} 12. dxe5 {[%clk 0:02:12.6]}
12... Qc7 {[%clk 0:02:14.3]} 13. Qd4 {[%clk 0:02:05.7]} 13... g5 {[%clk
0:01:27.3]} 14. h6 {[%clk 0:01:50.7]} 14... Bf5 {[%clk 0:01:23.4]} 15. Bd3
{[%clk 0:01:48]} 15... Bg6 {[%clk 0:01:23.2]} 16. f4 {[%clk 0:01:44.4]} 16... e6
{[%clk 0:01:16.8]} 17. g4 {[%clk 0:01:40.9]} 17... Bxd3 {[%clk 0:01:11]} 18.
cxd3 {[%clk 0:01:37.9]} 18... Nd7 {[%clk 0:01:11.5]} 19. Rc1 {[%clk 0:01:30.9]}
19... Rac8 {[%clk 0:01:06.9]} 20. Nc5 {[%clk 0:01:16.9]} 20... Nxc5 {[%clk
0:01:07.5]} 21. Rxc5 {[%clk 0:01:14.6]} 21... Qe7 {[%clk 0:00:54.6]} 22. Rh5
{[%clk 0:01:11.8]} 22... gxf4 {[%clk 0:00:55.1]} 23. exf4 {[%clk 0:01:00.5]}
23... f6 {[%clk 0:00:56.1]} 24. exf6 {[%clk 0:00:58.2]} 24... Qxf6 {[%clk
0:00:55.6]} 25. Rg5+ {[%clk 0:00:52.6]} 25... Kh8 {[%clk 0:00:55.4]} 26. Qe5
{[%clk 0:00:44.3]} 26... Qxe5+ {[%clk 0:00:52.5]} 27. Rxe5 {[%clk 0:00:40.2]}
27... Rxf4 {[%clk 0:00:42.8]} 28. Rxe6 {[%clk 0:00:39.5]} 28... Rxg4 {[%clk
0:00:44]} 29. Rexc6 {[%clk 0:00:37.5]} 29... Re8+ {[%clk 0:00:42.7]} 30. Kf2
{[%clk 0:00:17.5]} 30... Rf4+ {[%clk 0:00:43.5]} 31. Kg3 {[%clk 0:00:14.6]}
31... Rf5 {[%clk 0:00:40.7]} 32. Rc8 {[%clk 0:00:14.6]} 32... Rg8+ {[%clk
0:00:41.9]} 33. Rxg8+ {[%clk 0:00:12.8]} 33... Kxg8 {[%clk 0:00:43.2]} 34. Rc8+
{[%clk 0:00:05.4]} 34... Kf7 {[%clk 0:00:43.2]} 35. Rc7+ {[%clk 0:00:05.5]}
35... Kg6 {[%clk 0:00:44.5]} 36. Rxa7 {[%clk 0:00:05.7]} 36... Re5 {[%clk
0:00:41.7]} 37. Rb7 {[%clk 0:00:04.2]} 37... Re3+ {[%clk 0:00:38.2]} 0-1

[Event "*** Titled Tuesday Blitz"]
[Site "Chess.com"]
[Date "2019.08.06"]
[Round "2"]
[White "bugsbunny444"]
[Black "Kawhi_Leonard2"]
[Result "1-0"]
[WhiteElo "2497"]
[BlackElo "2327"]
[TimeControl "180+2"]
[EndTime "13:22:47 PDT"]
[Termination "bugsbunny444 won by resignation"]

1. Nf3 {[%clk 0:03:01.9]} 1... Nf6 {[%clk 0:03:00]} 2. c4 {[%clk 0:03:02.4]}
2... e6 {[%clk 0:03:00.3]} 3. g3 {[%clk 0:03:03.7]} 3... d5 {[%clk 0:03:00.9]}
4. Bg2 {[%clk 0:03:05.3]} 4... Be7 {[%clk 0:03:02]} 5. O-O {[%clk 0:03:06.8]}
5... O-O {[%clk 0:03:03.1]} 6. b3 {[%clk 0:03:08.5]} 6... c5 {[%clk 0:03:03.5]}
7. e3 {[%clk 0:03:09.9]} 7... Nc6 {[%clk 0:03:04.6]} 8. Bb2 {[%clk 0:03:11.2]}
8... b6 {[%clk 0:03:06]} 9. Nc3 {[%clk 0:03:12.6]} 9... Ba6 {[%clk 0:03:07]} 10.
Qe2 {[%clk 0:03:12.4]} 10... Qd7 {[%clk 0:03:08.3]} 11. Rfd1 {[%clk 0:03:12.5]}
11... Rfd8 {[%clk 0:03:09.2]} 12. Rac1 {[%clk 0:03:11.6]} 12... Rac8 {[%clk
0:03:10.1]} 13. Nb5 {[%clk 0:03:12.5]} 13... Bb7 {[%clk 0:03:10.4]} 14. d3
{[%clk 0:02:41.6]} 14... a6 {[%clk 0:03:10.5]} 15. Nc3 {[%clk 0:02:43.1]} 15...
Qe8 {[%clk 0:03:07.3]} 16. cxd5 {[%clk 0:02:42.5]} 16... Nxd5 {[%clk 0:03:02.8]}
17. Nxd5 {[%clk 0:02:43.7]} 17... Rxd5 {[%clk 0:03:03.4]} 18. d4 {[%clk
0:02:40.1]} 18... Rdd8 {[%clk 0:02:56.8]} 19. dxc5 {[%clk 0:02:20.2]} 19... Bxc5
{[%clk 0:02:56.9]} 20. Ne5 {[%clk 0:02:21.5]} 20... Rxd1+ {[%clk 0:02:54]} 21.
Rxd1 {[%clk 0:02:23.4]} 21... b5 {[%clk 0:02:46.4]} 22. Nd7 {[%clk 0:01:47.4]}
22... Be7 {[%clk 0:02:42.4]} 23. Qg4 {[%clk 0:01:35.4]} 23... e5 {[%clk
0:02:01.4]} 24. Nxe5 {[%clk 0:01:34.5]} 24... Bf6 {[%clk 0:01:52.1]} 25. Bxc6
{[%clk 0:01:10.4]} 25... Bxc6 {[%clk 0:01:49.9]} 26. Nxc6 {[%clk 0:01:11.7]}
26... Rxc6 {[%clk 0:01:25.5]} 27. Qd7 {[%clk 0:01:01.3]} 27... Qxd7 {[%clk
0:01:17]} 28. Rxd7 {[%clk 0:01:01.6]} 28... h6 {[%clk 0:01:14.1]} 29. Bxf6
{[%clk 0:01:00.6]} 29... Rxf6 {[%clk 0:01:15]} 30. Ra7 {[%clk 0:00:53.5]} 30...
Rc6 {[%clk 0:01:15.6]} 31. g4 {[%clk 0:00:50.2]} 31... g6 {[%clk 0:01:16.5]} 32.
Kg2 {[%clk 0:00:49.5]} 32... Kg7 {[%clk 0:01:17.8]} 33. h4 {[%clk 0:00:48.1]}
33... g5 {[%clk 0:01:10.9]} 34. h5 {[%clk 0:00:48.7]} 34... Rf6 {[%clk
0:01:08.1]} 35. Kg3 {[%clk 0:00:49]} 35... Re6 {[%clk 0:01:04.3]} 36. a4 {[%clk
0:00:44.1]} 36... bxa4 {[%clk 0:01:03.1]} 37. bxa4 {[%clk 0:00:44.9]} 37... Rf6
{[%clk 0:01:01.2]} 38. a5 {[%clk 0:00:42.5]} 38... Rc6 {[%clk 0:01:00.1]} 39.
Kg2 {[%clk 0:00:41]} 39... Kf6 {[%clk 0:00:53.2]} 40. Kf3 {[%clk 0:00:38.4]}
40... Ke6 {[%clk 0:00:53.9]} 41. Ra8 {[%clk 0:00:31.6]} 41... Kf6 {[%clk
0:00:54.1]} 42. Ke4 {[%clk 0:00:30.9]} 42... Kg7 {[%clk 0:00:51.6]} 43. f4
{[%clk 0:00:31.3]} 43... gxf4 {[%clk 0:00:46.8]} 44. exf4 {[%clk 0:00:33.2]}
44... Rc4+ {[%clk 0:00:45.6]} 45. Kf3 {[%clk 0:00:34.2]} 45... Rc6 {[%clk
0:00:46.2]} 46. g5 {[%clk 0:00:33.6]} 46... Rd6 {[%clk 0:00:46.6]} 47. Kg4
{[%clk 0:00:31.9]} 47... Rc6 {[%clk 0:00:47.2]} 48. Ra7 {[%clk 0:00:27.6]} 48...
Rd6 {[%clk 0:00:47.2]} 49. g6 {[%clk 0:00:28.7]} 1-0

[Event "*** Titled Tuesday Blitz"]
[Site "Chess.com"]
[Date "2019.08.06"]
[Round "2"]
[White "cukus"]
[Black "Hrant_ChessMood"]
[Result "1/2-1/2"]
[WhiteElo "2401"]
[BlackElo "2940"]
[TimeControl "180+2"]
[EndTime "13:22:55 PDT"]
[Termination "Game drawn by agreement"]

1. e4 {[%clk 0:03:01.9]} 1... e6 {[%clk 0:02:59.7]} 2. d4 {[%clk 0:03:02.1]}
2... d5 {[%clk 0:03:00.2]} 3. Nc3 {[%clk 0:03:03.5]} 3... Bb4 {[%clk 0:02:59.3]}
4. e5 {[%clk 0:03:04.4]} 4... c5 {[%clk 0:03:00.3]} 5. a3 {[%clk 0:03:05.9]}
5... Bxc3+ {[%clk 0:03:01.7]} 6. bxc3 {[%clk 0:03:07.8]} 6... Qa5 {[%clk
0:03:01.5]} 7. Bd2 {[%clk 0:03:06.8]} 7... Qa4 {[%clk 0:03:01.4]} 8. Qg4 {[%clk
0:03:07.5]} 8... Kf8 {[%clk 0:03:02.4]} 9. Nf3 {[%clk 0:03:08.4]} 9... b6 {[%clk
0:02:56]} 10. h3 {[%clk 0:03:04.5]} 10... Ne7 {[%clk 0:02:40.1]} 11. dxc5 {[%clk
0:02:39.7]} 11... Qxg4 {[%clk 0:02:40.3]} 12. hxg4 {[%clk 0:02:41.6]} 12... Ba6
{[%clk 0:02:32.4]} 13. cxb6 {[%clk 0:02:30.5]} 13... axb6 {[%clk 0:02:34.3]} 14.
Be3 {[%clk 0:02:32]} 14... Nd7 {[%clk 0:02:35]} 15. Bd3 {[%clk 0:02:25.4]} 15...
Nc6 {[%clk 0:02:29.5]} 16. Kd2 {[%clk 0:01:47]} 16... Ncxe5 {[%clk 0:02:19.3]}
17. Nxe5 {[%clk 0:01:45.4]} 17... Nxe5 {[%clk 0:02:21.2]} 18. Bxb6 {[%clk
0:01:24.6]} 18... Nxg4 {[%clk 0:02:02.4]} 19. Bc5+ {[%clk 0:01:02.8]} 19... Ke8
{[%clk 0:02:02.2]} 20. f4 {[%clk 0:00:48.7]} 20... Kd7 {[%clk 0:01:58.8]} 21.
Bd4 {[%clk 0:00:42.4]} 21... f6 {[%clk 0:01:54.2]} 22. Rh4 {[%clk 0:00:43.2]}
22... h5 {[%clk 0:01:50.6]} 23. Bxa6 {[%clk 0:00:30]} 23... Rxa6 {[%clk
0:01:52.5]} 24. Rah1 {[%clk 0:00:31.3]} 24... Rh6 {[%clk 0:01:30.2]} 25. Rxh5
{[%clk 0:00:28.6]} 25... Rxa3 {[%clk 0:01:30.8]} 26. Rxh6 {[%clk 0:00:27]} 26...
Nxh6 {[%clk 0:01:32.7]} 27. Bxf6 {[%clk 0:00:25.3]} 27... gxf6 {[%clk
0:01:02.6]} 28. Rxh6 {[%clk 0:00:25.9]} 28... Ke7 {[%clk 0:01:04.5]} 29. g4
{[%clk 0:00:21.7]} 29... Ra4 {[%clk 0:01:05.7]} 30. g5 {[%clk 0:00:16.9]} 30...
fxg5 {[%clk 0:01:00.3]} 31. fxg5 {[%clk 0:00:17.6]} 31... Rg4 {[%clk 0:01:02.2]}
32. Rh7+ {[%clk 0:00:16.3]} 32... Kd6 {[%clk 0:01:03]} 33. Rg7 {[%clk
0:00:11.7]} 33... Ke5 {[%clk 0:01:04.3]} 34. Rg8 {[%clk 0:00:13.2]} 34... Ke4
{[%clk 0:01:05.5]} 35. g6 {[%clk 0:00:12.1]} 35... Rg2+ {[%clk 0:01:07.1]} 36.
Ke1 {[%clk 0:00:13.2]} 36... e5 {[%clk 0:00:56.8]} 37. g7 {[%clk 0:00:13.6]}
37... Ke3 {[%clk 0:00:44.6]} 38. Kf1 {[%clk 0:00:14.8]} 38... Rf2+ {[%clk
0:00:46.1]} 39. Ke1 {[%clk 0:00:07.2]} 39... Rxc2 {[%clk 0:00:45.8]} 40. Kd1
{[%clk 0:00:08.7]} 40... Rd2+ {[%clk 0:00:42.8]} 41. Kc1 {[%clk 0:00:08.1]}
41... Rg2 {[%clk 0:00:44]} 42. Re8 {[%clk 0:00:08.6]} 42... Rxg7 {[%clk
0:00:34.4]} 43. Rxe5+ {[%clk 0:00:09.7]} 43... Kd3 {[%clk 0:00:36.3]} 44. Rxd5+
{[%clk 0:00:10.1]} 44... Kxc3 {[%clk 0:00:38.2]} 45. Rc5+ {[%clk 0:00:09.6]}
45... Kd3 {[%clk 0:00:39.7]} 46. Rc8 {[%clk 0:00:10.4]} 46... Rg2 {[%clk
0:00:38.6]} 47. Rd8+ {[%clk 0:00:11]} 47... Kc3 {[%clk 0:00:38.8]} 1/2-1/2

[Event "*** Titled Tuesday Blitz"]
[Site "Chess.com"]
[Date "2019.08.06"]
[Round "2"]
[White "raviteja81293"]
[Black "Pakarma"]
[Result "1-0"]
[WhiteElo "2587"]
[BlackElo "2409"]
[TimeControl "180+2"]
[EndTime "13:22:56 PDT"]
[Termination "raviteja81293 won by resignation"]

1. d4 {[%clk 0:03:01.9]} 1... Nf6 {[%clk 0:02:59.5]} 2. Nf3 {[%clk 0:03:03]}
2... g6 {[%clk 0:02:57.2]} 3. Bg5 {[%clk 0:03:03.8]} 3... Bg7 {[%clk 0:02:56.7]}
4. Nbd2 {[%clk 0:03:04.3]} 4... d5 {[%clk 0:02:52.2]} 5. e3 {[%clk 0:03:04.6]}
5... O-O {[%clk 0:02:49.2]} 6. Be2 {[%clk 0:03:05.7]} 6... c6 {[%clk 0:02:49.1]}
7. O-O {[%clk 0:03:06.1]} 7... b6 {[%clk 0:02:41.8]} 8. c3 {[%clk 0:03:05.7]}
8... Ba6 {[%clk 0:02:39.8]} 9. h3 {[%clk 0:03:05.5]} 9... Bxe2 {[%clk
0:02:39.2]} 10. Qxe2 {[%clk 0:03:07.4]} 10... Nbd7 {[%clk 0:02:38.5]} 11. e4
{[%clk 0:03:06.7]} 11... dxe4 {[%clk 0:02:36.4]} 12. Nxe4 {[%clk 0:03:07.9]}
12... Re8 {[%clk 0:02:33.2]} 13. Rad1 {[%clk 0:03:08.1]} 13... Qc7 {[%clk
0:02:27.5]} 14. Nxf6+ {[%clk 0:02:48.4]} 14... Nxf6 {[%clk 0:02:27.7]} 15. Ne5
{[%clk 0:02:40.3]} 15... Rad8 {[%clk 0:02:10.8]} 16. Bf4 {[%clk 0:02:34.4]}
16... Qc8 {[%clk 0:02:11.1]} 17. Rfe1 {[%clk 0:02:34.7]} 17... c5 {[%clk
0:02:03]} 18. dxc5 {[%clk 0:02:33.6]} 18... Qxc5 {[%clk 0:02:03.1]} 19. Nf3
{[%clk 0:02:22]} 19... Nd5 {[%clk 0:01:55.1]} 20. Be5 {[%clk 0:02:19.5]} 20...
e6 {[%clk 0:01:42.1]} 21. Bxg7 {[%clk 0:02:15.2]} 21... Kxg7 {[%clk 0:01:44]}
22. h4 {[%clk 0:02:16.8]} 22... h6 {[%clk 0:01:35.9]} 23. Qe5+ {[%clk
0:02:11.3]} 23... Nf6 {[%clk 0:01:34.5]} 24. Qxc5 {[%clk 0:02:10.5]} 24... bxc5
{[%clk 0:01:36.4]} 25. Ne5 {[%clk 0:02:11.7]} 25... Rd5 {[%clk 0:01:28.4]} 26.
Nc6 {[%clk 0:02:03.2]} 26... a6 {[%clk 0:01:23.6]} 27. Rxd5 {[%clk 0:01:51.8]}
27... Nxd5 {[%clk 0:01:20.6]} 28. c4 {[%clk 0:01:39.1]} 28... Nf6 {[%clk
0:01:03.9]} 29. Rd1 {[%clk 0:01:37.7]} 29... Rc8 {[%clk 0:01:03.3]} 30. Na5
{[%clk 0:01:37.6]} 30... Ne4 {[%clk 0:00:40.7]} 31. Rd7 {[%clk 0:01:36.2]} 31...
Rb8 {[%clk 0:00:36]} 32. Nb3 {[%clk 0:01:26.2]} 32... a5 {[%clk 0:00:29.7]} 33.
f3 {[%clk 0:01:24.5]} 33... a4 {[%clk 0:00:27.9]} 34. fxe4 {[%clk 0:01:06.1]}
34... axb3 {[%clk 0:00:27.9]} 35. a3 {[%clk 0:01:08]} 35... Kf6 {[%clk
0:00:24.5]} 36. Kf2 {[%clk 0:01:09.1]} 36... Ke5 {[%clk 0:00:23.4]} 37. Ke3
{[%clk 0:01:08]} 37... f6 {[%clk 0:00:21]} 38. Rh7 {[%clk 0:01:05.3]} 38... g5
{[%clk 0:00:18.9]} 39. Rxh6 {[%clk 0:01:04.9]} 39... gxh4 {[%clk 0:00:19.5]} 40.
Rxh4 {[%clk 0:01:06.3]} 40... Rd8 {[%clk 0:00:20.5]} 41. Rh5+ {[%clk 0:01:05.6]}
41... f5 {[%clk 0:00:20.9]} 42. exf5 {[%clk 0:01:06.9]} 42... exf5 {[%clk
0:00:22.8]} 43. g4 {[%clk 0:01:08.5]} 43... Rd1 {[%clk 0:00:21.7]} 44. Rxf5+
{[%clk 0:01:09.7]} 44... Ke6 {[%clk 0:00:22.8]} 45. Rf2 {[%clk 0:01:00.1]} 45...
Rb1 {[%clk 0:00:24.7]} 46. Kd3 {[%clk 0:01:00.8]} 46... Rd1+ {[%clk 0:00:26.6]}
47. Kc3 {[%clk 0:01:01.9]} 47... Rb1 {[%clk 0:00:28.5]} 48. Kxb3 {[%clk
0:01:03.1]} 48... Rd1 {[%clk 0:00:30.4]} 49. Rg2 {[%clk 0:01:03]} 49... Rd4
{[%clk 0:00:32.3]} 50. g5 {[%clk 0:01:04.3]} 50... Kf7 {[%clk 0:00:32.7]} 51.
g6+ {[%clk 0:01:05.7]} 51... Kg7 {[%clk 0:00:33.8]} 52. Kc3 {[%clk 0:01:07.1]}
52... Rf4 {[%clk 0:00:34.3]} 53. Rg3 {[%clk 0:01:07.5]} 1-0

[Event "*** Titled Tuesday Blitz"]
[Site "Chess.com"]
[Date "2019.08.06"]
[Round "2"]
[White "Airquake"]
[Black "AntonSmirnov"]
[Result "1-0"]
[WhiteElo "2633"]
[BlackElo "2862"]
[TimeControl "180+2"]
[EndTime "13:23:01 PDT"]
[Termination "Airquake won by resignation"]

1. e4 {[%clk 0:03:01.9]} 1... e5 {[%clk 0:02:57.6]} 2. Nf3 {[%clk 0:03:02]} 2...
Nc6 {[%clk 0:02:58]} 3. Bb5 {[%clk 0:03:02.6]} 3... f5 {[%clk 0:02:58.8]} 4. d3
{[%clk 0:03:03]} 4... fxe4 {[%clk 0:02:59.8]} 5. dxe4 {[%clk 0:03:04.9]} 5...
Nf6 {[%clk 0:03:01.1]} 6. O-O {[%clk 0:03:05.2]} 6... Bc5 {[%clk 0:03:02.3]} 7.
Nc3 {[%clk 0:02:58.3]} 7... d6 {[%clk 0:03:02.8]} 8. Bg5 {[%clk 0:02:58.9]} 8...
O-O {[%clk 0:03:03.4]} 9. h3 {[%clk 0:02:55.8]} 9... Kh8 {[%clk 0:03:00.3]} 10.
Nd5 {[%clk 0:02:54.4]} 10... Be6 {[%clk 0:02:58.9]} 11. Be2 {[%clk 0:02:43]}
11... Qd7 {[%clk 0:02:52.6]} 12. Bxf6 {[%clk 0:02:41.8]} 12... gxf6 {[%clk
0:02:53.1]} 13. Nh4 {[%clk 0:02:43.2]} 13... Nd4 {[%clk 0:02:37.5]} 14. Bg4
{[%clk 0:01:47.5]} 14... f5 {[%clk 0:02:19.1]} 15. Nxf5 {[%clk 0:01:37.5]} 15...
Nxf5 {[%clk 0:02:18.9]} 16. exf5 {[%clk 0:01:37.4]} 16... Bxf5 {[%clk
0:02:19.8]} 17. Bxf5 {[%clk 0:01:37.4]} 17... Rxf5 {[%clk 0:01:33]} 18. b4
{[%clk 0:01:38]} 18... Bb6 {[%clk 0:01:29.8]} 19. a4 {[%clk 0:01:38.8]} 19... c6
{[%clk 0:01:29.7]} 20. Nxb6 {[%clk 0:01:37.1]} 20... axb6 {[%clk 0:01:31.6]} 21.
c4 {[%clk 0:01:36.8]} 21... Rg8 {[%clk 0:01:30.3]} 22. Ra3 {[%clk 0:01:20.5]}
22... Rfg5 {[%clk 0:01:24.8]} 23. Rg3 {[%clk 0:01:13.9]} 23... Rxg3 {[%clk
0:01:24.1]} 24. fxg3 {[%clk 0:01:15.8]} 24... Rxg3 {[%clk 0:01:24.8]} 25. Qh5
{[%clk 0:01:09.7]} 25... Kg7 {[%clk 0:01:09.9]} 26. Qh4 {[%clk 0:00:53]} 26...
Rg6 {[%clk 0:01:10.6]} 27. Qf2 {[%clk 0:00:54.3]} 27... Qd8 {[%clk 0:00:56.1]}
28. Qf7+ {[%clk 0:00:54.8]} 28... Kh6 {[%clk 0:00:57]} 29. Qxb7 {[%clk
0:00:53.1]} 29... Qg5 {[%clk 0:00:55.6]} 30. Qxc6 {[%clk 0:00:52.6]} 30... Qe3+
{[%clk 0:00:51.9]} 31. Kh1 {[%clk 0:00:53.5]} 31... e4 {[%clk 0:00:48.3]} 32.
Qe8 {[%clk 0:00:45.1]} 32... Qg3 {[%clk 0:00:31.8]} 33. Qf8+ {[%clk 0:00:45.5]}
33... Kh5 {[%clk 0:00:27.8]} 34. Rf5+ {[%clk 0:00:29.6]} 34... Rg5 {[%clk
0:00:27.3]} 35. Qf7+ {[%clk 0:00:26.6]} 35... Kh6 {[%clk 0:00:27.1]} 36. Qe6+
{[%clk 0:00:18.1]} 36... Rg6 {[%clk 0:00:23.1]} 37. Qxe4 {[%clk 0:00:18.7]}
37... Qc3 {[%clk 0:00:18.6]} 38. Qf4+ {[%clk 0:00:17.4]} 38... Kg7 {[%clk
0:00:19.2]} 39. Rf7+ {[%clk 0:00:18.7]} 39... Kg8 {[%clk 0:00:20.6]} 40. Re7
{[%clk 0:00:18.7]} 40... Rf6 {[%clk 0:00:09.8]} 41. Qg4+ {[%clk 0:00:19.4]} 1-0